bitfinex/quotes_ETHUSD_20250623
["timestamp","ask_amount","ask_price","bid_price","bid_amount"]
[1750669581933,10.79451322,2261.9,2261.3,2.51377988]
[1750669582110,10.7503,2261.9,2261.3,4.42221617]
[1750669582307,10.7503,2261.9,2260.9,11.62799472]
[1750669582308,0.8094,2261.7,2260.9,0.7519]
[1750669582507,0.8094,2261.4,2260.6,5.17542557]
[1750669582820,9.067,2261.3,2260.9,6.98259849]
[1750669583135,9.067,2261.3,2260.7,11.40591013]
[1750669583316,9.067,2261.3,2260.7,8.64075215]
[1750669583492,0.04421322,2261.2,2260.7,8.64075215]
[1750669583931,0.7696,2261.1,2260.7,8.64075215]
[1750669585925,0.7696,2261.1,2260.7,1.65815366]
[1750669586102,0.7696,2261.1,2260.5,11.4062921]
[1750669587037,0.7696,2261.1,2260.6,4.42360256]
[1750669587857,0.7696,2261.1,2260.8,4.42319268]
[1750669588425,0.7696,2261.1,2260.7,11.40589729]
[1750669588603,0.785,2261.4,2260.9,6.98259849]
[1750669588800,0.785,2261.4,2261.1,11.40510771]
[1750669588801,10.0,2261.4,2261.1,11.40510771]
[1750669589015,10.0,2261.4,2261.1,6.98259849]
[1750669589606,10.0,2261.4,2261.1,11.44943156]
[1750669589835,2.648,2261.5,2261.1,6.98259849]
[1750669590009,2.648,2261.5,2261.1,0.04421974]
[1750669590210,2.648,2261.5,2261.0,4.42270018]
[1750669590440,2.648,2261.5,2261.0,6.16682552]
[1750669592421,2.648,2261.5,2261.1,0.04421977]
[1750669593051,2.648,2261.5,2261.0,1.74412534]
[1750669593457,2.648,2261.5,2261.0,6.16694465]
[1750669594447,1.862,2261.4,2261.0,1.74412534]
[1750669594866,1.862,2261.4,2261.0,6.16692744]
[1750669595164,1.862,2261.4,2261.1,13.64667476]
[1750669595319,1.862,2261.4,2261.1,13.60245479]
[1750669596759,0.8051,2261.7,2261.4,4.42195808]
[1750669596963,1.862,2261.8,2261.4,0.8095]
[1750669597252,1.862,2261.8,2261.2,0.8095]
[1750669597555,0.765,2261.7,2261.2,0.8095]
[1750669598049,0.765,2261.7,2261.2,0.04421678]
[1750669600456,0.04421322,2261.6,2260.8,5.21872733]
[1750669600599,0.7958,2261.5,2260.9,1.26435678]
[1750669600968,0.7958,2261.5,2260.9,5.68736821]
[1750669601604,0.7958,2261.5,2260.9,12.66984426]
[1750669601776,0.7958,2261.5,2260.9,12.62562006]
[1750669602500,0.7958,2261.5,2260.9,17.04845975]
[1750669602704,0.7958,2261.5,2261.0,6.20721321]
[1750669602881,0.7958,2261.5,2261.0,1.78440597]
[1750669605691,1.862,2261.5,2261.3,6.98259849]
[1750669606369,1.862,2261.5,2261.1,0.8302]
[1750669606603,1.862,2261.5,2261.1,0.04421993]
[1750669606775,1.862,2261.5,2261.1,1.45065293]
[1750669611395,0.8261,2261.4,2260.8,4.42312956]
[1750669611902,0.8261,2261.4,2260.7,12.20881118]
[1750669612606,0.8205,2261.3,2260.6,4.42357472]
[1750669612794,0.8205,2261.3,2260.7,0.04422887]
[1750669613001,8.0255,2261.3,2260.7,0.04422887]
[1750669613306,10.01425,2261.3,2260.7,0.04422887]
[1750669613694,0.86491322,2261.2,2260.5,12.22591097]
[1750669614080,0.8207,2261.2,2260.6,4.4678272]
[1750669614285,10.8207,2261.2,2260.6,0.04422894]
[1750669614486,10.8207,2261.2,2260.3,0.7698]
[1750669614487,0.81451322,2261.1,2260.3,0.7698]
[1750669614696,0.7538,2260.9,2260.3,12.17648104]
[1750669614898,0.79801322,2260.9,2260.4,1.66008181]
[1750669615111,0.7538,2260.9,2260.4,6.08406404]
[1750669615315,0.7538,2260.9,2260.4,6.08402112]
[1750669615895,0.7538,2260.9,2260.5,4.42379284]
[1750669616096,0.7538,2260.9,2260.5,11.45062457]
[1750669616299,0.79801322,2260.9,2260.5,6.98259849]
[1750669616494,0.79801322,2260.9,2260.4,6.08397237]
[1750669616819,7.205,2260.8,2260.3,4.42412383]
[1750669616985,7.205,2260.8,2260.2,11.4068363]
[1750669617514,0.04421322,2260.7,2260.2,6.98259849]
[1750669617722,7.205,2260.8,2260.2,6.98259849]
[1750669617723,0.7732,2260.6,2260.2,11.40697692]
[1750669617899,0.7732,2260.6,2260.2,4.42437843]
[1750669618093,0.7732,2260.6,2260.2,8.58237433]
[1750669618285,1.862,2260.5,2260.0,17.77248291]
[1750669620425,1.862,2260.5,2260.0,13.34780015]
[1750669620707,0.7649,2260.4,2260.0,13.34780015]
[1750669621326,0.04421322,2260.3,2260.0,5.92779026]
[1750669622212,0.7649,2260.3,2260.0,5.92779026]
[1750669624444,1.861,2260.2,2260.0,15.08643357]
[1750669624933,0.55,2261.0,2260.0,15.08643357]
[1750669625088,0.7649,2260.6,2260.4,4.42382996]
[1750669625293,1.862,2260.9,2260.5,11.45052807]
[1750669625596,1.862,2260.9,2260.6,4.42357398]
[1750669625801,1.862,2261.1,2260.8,5.24052958]
[1750669626008,1.862,2261.1,2260.9,6.98259849]
[1750669626190,1.862,2261.1,2260.9,11.44983127]
[1750669626391,1.862,2261.3,2260.9,13.07453345]
[1750669626590,1.862,2261.3,2261.1,6.98259849]
[1750669626827,1.862,2261.3,2261.1,11.40522105]
[1750669626985,1.862,2261.3,2261.1,6.98259849]
[1750669628023,1.862,2261.3,2260.9,11.40549505]
[1750669628190,10.04421322,2261.5,2261.0,4.42281183]
[1750669628385,11.861,2261.5,2261.1,1.14054103]
[1750669629130,11.861,2261.5,2260.9,11.40551642]
[1750669630918,11.861,2261.5,2260.9,6.98259849]
[1750669631242,11.861,2261.5,2260.9,11.40558807]
[1750669632620,11.861,2261.5,2260.9,11.40558687]
[1750669633239,11.861,2261.5,2260.9,6.98259849]
[1750669633420,11.861,2261.5,2260.9,9.51141678]
[1750669633608,11.861,2261.5,2260.9,6.95176519]
[1750669633808,11.861,2261.5,2260.8,0.1051541]
[1750669633809,0.81271322,2261.4,2260.8,0.1051541]
[1750669634018,0.807,2261.2,2260.8,0.1051541]
[1750669634225,0.85121322,2261.2,2260.8,0.1051541]
[1750669634744,0.807,2261.2,2260.8,0.1051541]
[1750669635342,11.65251322,2261.2,2260.8,0.1051541]
[1750669635526,0.822,2261.1,2260.8,0.1051541]
[1750669635723,0.822,2260.9,2260.8,0.1051541]
[1750669635930,8.028,2260.9,2260.8,0.1051541]
[1750669636327,18.07221322,2260.9,2260.8,0.1051541]
[1750669636539,20.02132132,2260.9,2260.8,0.1051541]
[1750669637066,27.00391981,2260.9,2260.8,0.1051541]
[1750669637225,27.55391981,2260.9,2260.8,0.1051541]
[1750669638224,0.8069,2260.5,2260.0,5.92779026]
[1750669638422,10.8069,2260.3,2260.0,5.92779026]
[1750669638633,10.0,2260.1,2260.0,5.92779026]
[1750669640402,10.53597369,2260.1,2260.0,5.92779026]
[1750669640807,11.33267369,2260.1,2260.0,5.92779026]
[1750669642247,0.7967,2260.1,2260.0,5.92779026]
[1750669642620,9.8677,2260.1,2260.0,5.92779026]
[1750669643238,10.0,2260.4,2260.0,5.92779026]
[1750669643545,9.8636,2260.3,2260.0,5.92779026]
[1750669644045,0.04421322,2260.2,2260.0,5.92779026]
[1750669645449,1.64298691,2260.2,2260.0,5.92779026]
[1750669646472,9.8636,2260.3,2260.0,5.92779026]
[1750669646615,0.04421322,2260.2,2260.0,5.92779026]
[1750669647156,1.862,2260.1,2260.0,6.74029026]
[1750669648067,1.862,2260.1,2260.0,5.92779026]
[1750669651976,1.90621322,2260.1,2260.0,5.92779026]
[1750669652336,1.862,2260.1,2260.0,5.92779026]
[1750669653101,4.61513,2260.1,2260.0,5.92779026]
[1750669653386,2.6263,2260.1,2260.0,5.92779026]
[1750669654998,9.08,2260.1,2260.0,5.92779026]
[1750669659085,9.08,2260.1,2260.0,5.87779026]
[1750669661553,10.0,2260.2,2260.0,5.87779026]
[1750669661754,10.0,2260.4,2260.0,7.29356929]
[1750669662083,1.862,2260.3,2260.0,7.29356929]
[1750669662291,1.862,2260.3,2260.0,14.27751455]
[1750669662593,1.862,2260.3,2260.0,7.29356929]
[1750669662887,1.862,2260.3,2260.0,6.70579026]
[1750669664786,1.862,2260.3,2260.0,5.87779026]
[1750669664787,0.82341322,2260.2,2260.0,5.87779026]
[1750669664987,9.078,2260.3,2260.0,5.87779026]
[1750669670766,9.078,2260.3,2260.0,5.82779026]
[1750669675789,7.216,2260.3,2260.0,5.82779026]
[1750669675983,1.862,2260.2,2260.1,0.7537]
[1750669676776,1.862,2260.2,2260.0,5.82779026]
[1750669677884,10.85551322,2260.1,2260.0,5.82779026]
[1750669678085,10.8113,2260.1,2260.0,5.82779026]
[1750669680313,0.8113,2260.1,2260.0,5.82779026]
[1750669680479,9.8823,2260.1,2260.0,5.82779026]
[1750669680812,10.87495132,2260.1,2260.0,5.82779026]
[1750669682313,11.42495132,2260.1,2260.0,5.82779026]
[1750669682913,1.80395132,2260.1,2260.0,5.82779026]
[1750669683211,9.8953,2260.1,2260.0,5.82779026]
[1750669687417,9.9063,2260.1,2260.0,5.82779026]
[1750669688516,20.4563,2260.1,2260.0,5.82779026]
[1750669690215,19.9063,2260.1,2260.0,5.82779026]
[1750669692486,20.31663991,2260.1,2260.0,5.82779026]
[1750669692702,22.3483039,2260.1,2260.0,5.82779026]
[1750669693103,21.93796399,2260.1,2260.0,5.82779026]
[1750669693393,22.34832328,2260.1,2260.0,5.82779026]
[1750669693590,1.866,2260.1,2260.0,5.82779026]
[1750669693794,10.63,2260.5,2260.0,5.82779026]
[1750669693795,1.866,2260.2,2260.0,6.62009026]
[1750669694125,9.099,2260.2,2260.0,6.62009026]
[1750669694328,9.099,2260.2,2260.0,6.61219026]
[1750669696296,10.0,2260.4,2260.0,6.61219026]
[1750669696498,20.63,2260.5,2260.0,6.61219026]
[1750669696499,9.14121322,2260.3,2260.0,6.61219026]
[1750669696712,9.097,2260.3,2260.0,6.61219026]
[1750669697240,0.04421322,2260.2,2260.0,6.61219026]
[1750669697545,7.23,2260.1,2260.0,5.82779026]
[1750669698034,7.229,2260.1,2260.0,5.82779026]
[1750669700300,18.14292132,2260.1,2260.0,5.82779026]
[1750669701431,19.52562132,2260.1,2260.0,5.82779026]
[1750669706878,19.93661098,2260.1,2260.0,5.82779026]
[1750669707658,19.52562132,2260.1,2260.0,5.82779026]
[1750669707853,12.70764712,2260.1,2260.0,5.82779026]
[1750669708162,21.80764712,2260.1,2260.0,5.82779026]
[1750669709114,21.80774329,2260.1,2260.0,5.82779026]
[1750669709520,21.39662132,2260.1,2260.0,5.82779026]
[1750669709757,21.80777078,2260.1,2260.0,5.82779026]
[1750669709959,21.80777114,2260.1,2260.0,5.82779026]
[1750669711160,21.80773884,2260.1,2260.0,5.82779026]
[1750669711363,21.80773214,2260.1,2260.0,5.82779026]
[1750669711868,22.8598776,2260.1,2260.0,4.8261388]
[1750669712065,22.8598776,2260.1,2260.0,0.83558395]
[1750669712066,24.1908006,2260.1,2260.0,0.83558395]
[1750669712630,0.7533,2259.9,2259.1,0.7885]
[1750669712941,0.55,2259.5,2259.1,0.7885]
[1750669713257,9.15021322,2259.4,2259.1,0.7885]
[1750669713464,9.106,2259.4,2259.1,0.7885]
[1750669713680,0.04421322,2259.3,2259.1,0.7885]
[1750669713830,7.234,2259.2,2259.1,0.7885]
[1750669714526,7.234,2259.2,2258.8,0.7904]
[1750669714729,0.04421322,2259.1,2258.8,0.7904]
[1750669714925,7.232,2259.0,2258.8,0.7904]
[1750669715279,1.875,2258.9,2258.8,0.7904]
[1750669716952,1.91921322,2258.9,2258.8,0.7904]
[1750669717157,1.875,2258.9,2258.8,0.7904]
[1750669718432,1.91921322,2258.9,2258.6,0.8151]
[1750669720038,10.7882,2259.3,2258.6,0.8151]
[1750669720364,9.15021322,2259.2,2258.6,1.66661772]
[1750669720528,9.106,2259.2,2258.6,1.66661772]
[1750669721051,7.231,2259.2,2258.6,1.66661772]
[1750669721256,9.104,2259.1,2258.7,7.77379387]
[1750669721458,9.104,2259.1,2258.7,0.784]
[1750669721646,12.19752,2259.3,2258.7,0.784]
[1750669721846,9.104,2259.0,2258.7,0.784]
[1750669722044,9.104,2259.0,2258.7,8.6177743]
[1750669722245,10.0,2259.3,2258.8,0.7705]
[1750669722469,9.103,2259.2,2258.8,0.7705]
[1750669722764,10.637,2259.4,2259.0,0.7705]
[1750669722971,1.875,2259.3,2259.2,0.8247]
[1750669723201,1.91921322,2259.3,2259.2,0.8247]
[1750669723342,1.875,2259.3,2259.2,0.8247]
[1750669724650,1.875,2259.3,2259.2,1.61057608]
[1750669727283,1.875,2259.3,2259.2,0.8247]
[1750669727838,10.637,2259.4,2259.2,0.8247]
[1750669728078,1.875,2259.3,2259.2,0.8247]
[1750669732250,1.875,2259.3,2258.9,0.7513]
[1750669733463,1.875,2259.3,2258.9,7.03405717]
[1750669733654,12.512,2259.4,2259.0,2.93781493]
[1750669734250,12.512,2259.4,2259.0,0.7917]
[1750669734451,0.04421322,2259.3,2259.0,0.7917]
[1750669735783,12.512,2259.4,2259.0,0.7917]
[1750669736588,0.04421322,2259.3,2259.0,0.7917]
[1750669736790,7.219,2259.2,2259.0,0.7917]
[1750669739187,7.219,2259.2,2258.8,10.0]
[1750669739527,7.219,2259.2,2258.8,10.833]
[1750669740480,0.7519,2259.0,2258.5,0.2262211]
[1750669740822,0.41048089,2258.9,2258.6,7.82279387]
[1750669740970,9.102,2258.9,2258.6,7.82279387]
[1750669741175,9.102,2258.9,2258.6,0.833]
[1750669741361,0.7519,2259.2,2258.7,6.98979387]
[1750669741696,9.105,2259.1,2258.8,0.833]
[1750669743297,9.8569,2259.1,2258.6,0.833]
[1750669744159,9.105,2259.1,2258.6,0.833]
[1750669745194,9.105,2259.1,2258.6,7.82279387]
[1750669745394,0.7614,2259.3,2258.7,0.80932897]
[1750669745609,10.637,2259.4,2258.7,0.80932897]
[1750669745610,10.637,2259.4,2259.0,6.98979387]
[1750669745905,9.105,2259.2,2259.0,6.98979387]
[1750669746407,10.637,2259.4,2259.0,6.98979387]
[1750669746720,1.874,2259.1,2259.0,6.98979387]
[1750669746878,10.637,2259.4,2259.0,7.76900326]
[1750669747077,9.106,2259.3,2259.0,6.98979387]
[1750669747503,10.637,2259.4,2259.1,0.829]
[1750669747895,9.105,2259.3,2259.1,0.829]
[1750669748812,10.637,2259.4,2259.1,0.829]
[1750669749017,1.874,2259.3,2259.1,0.829]
[1750669750908,1.874,2259.3,2259.1,7.81879387]
[1750669751481,1.874,2259.3,2259.1,0.829]
[1750669754809,1.91821322,2259.2,2258.7,0.7762]
[1750669755807,1.874,2259.2,2258.7,0.7762]
[1750669756327,0.04421322,2259.1,2258.7,0.7762]
[1750669756487,7.228,2259.0,2258.7,0.7762]
[1750669758627,2.8048,2259.3,2258.7,1.5754215]
[1750669758928,1.874,2258.9,2258.7,0.7762]
[1750669759112,1.874,2258.9,2258.5,7.21601497]
[1750669759113,0.04421322,2258.8,2258.5,0.2262211]
[1750669759428,8.0106,2258.7,2258.5,0.2262211]
[1750669759724,0.84969454,2258.6,2258.5,0.2262211]
[1750669760102,11.21551269,2258.6,2258.5,0.2262211]
[1750669760886,10.80548132,2258.6,2258.5,0.2262211]
[1750669762229,11.40548132,2258.6,2258.5,0.2262211]
[1750669762435,11.81483989,2258.6,2258.5,0.2262211]
[1750669763031,11.81483581,2258.6,2258.5,0.2262211]
[1750669763232,11.40548132,2258.6,2258.5,0.2262211]
[1750669766332,13.11904975,2258.6,2258.5,0.2262211]
[1750669767417,22.23504975,2258.6,2258.5,0.2262211]
[1750669767861,13.11904975,2258.6,2258.5,0.2262211]
[1750669768025,20.4717,2258.6,2258.5,0.2262211]
[1750669770512,21.0217,2258.6,2258.5,0.2262211]
[1750669774670,1.3547,2258.6,2258.5,0.2262211]
[1750669774875,10.4757,2258.6,2258.5,0.2262211]
[1750669775365,0.6,2258.6,2258.5,0.2262211]
[1750669775524,19.719,2258.6,2258.5,0.2262211]
[1750669775997,12.479,2258.6,2258.5,0.2262211]
[1750669776224,19.723,2258.6,2258.5,0.2262211]
[1750669780924,21.0903,2258.6,2258.5,0.2262211]
[1750669781119,21.49887954,2258.6,2258.5,0.2262211]
[1750669781953,21.49889975,2258.6,2258.5,0.2262211]
[1750669782616,28.48869362,2258.6,2258.5,0.2262211]
[1750669782810,28.08009387,2258.6,2258.5,0.2262211]
[1750669783016,30.49958888,2258.6,2258.5,0.2262211]
[1750669790161,30.50158888,2258.6,2258.5,0.2262211]
[1750669790319,31.5517805,2258.6,2258.5,0.2262211]
[1750669790756,30.50158888,2258.6,2258.5,0.2262211]
[1750669790971,0.8008,2258.4,2257.4,0.758]
[1750669791253,10.55,2258.5,2257.4,0.758]
[1750669791254,7.79059387,2258.0,2257.4,0.758]
[1750669791459,9.17221322,2257.9,2257.4,0.758]
[1750669791624,9.128,2257.9,2257.4,0.758]
[1750669791825,0.04421322,2257.8,2257.4,0.758]
[1750669792038,7.249,2257.7,2257.4,0.758]
[1750669792248,0.04421322,2257.6,2257.4,0.758]
[1750669792565,7.248,2257.5,2257.4,0.758]
[1750669793778,0.55,2257.9,2257.4,0.758]
[1750669794069,1.88,2257.5,2257.4,0.758]
[1750669794241,9.126,2257.5,2257.4,0.758]
[1750669795762,0.8008,2258.0,2257.4,0.758]
[1750669796091,5.32194635,2259.8,2257.0,4.91814317]
[1750669796092,0.7784,2258.4,2257.6,0.7626]
[1750669796373,1.88,2257.9,2257.8,0.7626]
[1750669796542,9.127,2257.9,2257.6,0.7656]
[1750669796744,0.04421322,2257.8,2257.6,0.7656]
[1750669797130,0.04421322,2257.8,2256.9,6.98979387]
[1750669797331,0.04421322,2257.8,2257.0,0.7656]
[1750669797527,0.04421322,2257.8,2257.2,0.7612]
[1750669799246,0.8002,2257.7,2256.9,0.8168]
[1750669799455,7.29821322,2257.6,2256.9,0.8168]
[1750669799656,7.29821322,2257.6,2256.9,1.26600098]
[1750669799959,9.10805454,2257.6,2256.9,1.83571404]
[1750669800373,11.85405454,2257.6,2257.0,0.7508]
[1750669800592,9.137,2257.5,2257.0,0.7508]
[1750669800749,0.04421322,2257.4,2257.0,0.7508]
[1750669801284,9.137,2257.5,2257.0,0.7508]
[1750669801440,1.22970413,2257.5,2257.0,0.7508]
[1750669801641,9.135,2257.4,2257.0,0.7508]
[1750669801950,9.135,2257.3,2257.0,0.7508]
[1750669802438,0.6,2257.1,2257.0,0.7508]
[1750669802869,9.135,2257.3,2257.0,0.7508]
[1750669803055,9.135,2257.2,2257.0,0.7508]
[1750669804055,11.80984132,2257.6,2257.0,0.7508]
[1750669804462,9.138,2257.5,2257.0,0.7508]
[1750669804660,9.138,2257.4,2257.0,0.7508]
[1750669805671,10.0,2257.6,2257.0,1.56916115]
[1750669805871,9.138,2257.5,2257.1,6.98979387]
[1750669806176,9.137,2257.4,2257.2,0.8184]
[1750669806472,1.885,2257.3,2257.2,0.8184]
[1750669806683,1.885,2257.6,2257.4,0.782]
[1750669810582,10.0,2258.2,2257.4,0.782]
[1750669810892,9.18221322,2258.1,2257.5,7.80359387]
[1750669811091,9.138,2258.1,2257.5,7.80359387]
[1750669811455,0.6,2257.9,2257.5,7.80359387]
[1750669811670,0.6,2257.9,2257.6,0.78035939]
[1750669813477,9.134,2257.8,2257.7,0.7685]
[1750669813656,9.133,2257.8,2257.7,0.7685]
[1750669813851,9.132,2257.8,2257.7,0.7685]
[1750669814096,1.885,2257.8,2257.7,0.7685]
[1750669814393,1.885,2257.8,2257.7,1.54432939]
[1750669814689,1.885,2257.8,2257.7,1.58861728]
[1750669814897,1.885,2257.8,2257.7,1.54432939]
[1750669818077,1.885,2257.8,2257.7,0.7685]
[1750669822071,1.885,2257.8,2257.4,7.78559387]
[1750669822628,1.884,2257.7,2257.5,0.7824]
[1750669824398,7.237,2257.8,2257.7,0.7911]
[1750669824399,7.236,2257.8,2257.7,0.7911]
[1750669824596,11.4054,2258.3,2257.7,0.7911]
[1750669824906,9.119,2258.2,2257.7,0.83538912]
[1750669825693,9.718,2258.1,2257.7,0.83538912]
[1750669825894,9.118,2258.0,2257.7,0.83538912]
[1750669826100,0.6,2258.1,2257.7,0.83538912]
[1750669826298,1.884,2258.0,2257.9,0.7987]
[1750669826496,1.884,2258.0,2257.9,2.02488509]
[1750669826819,1.884,2258.0,2257.9,2.06916917]
[1750669827418,1.884,2258.1,2258.0,0.7644]
[1750669829222,1.884,2258.1,2257.8,4.42907029]
[1750669829429,1.884,2258.1,2257.9,0.83818125]
[1750669829930,1.884,2258.1,2257.9,12.50680793]
[1750669830230,1.884,2258.1,2257.9,12.46252668]
[1750669830429,1.884,2258.1,2257.9,6.89140169]
[1750669830646,7.233,2258.1,2258.0,4.42869796]
[1750669830802,9.117,2258.1,2258.0,4.42869796]
[1750669830996,9.117,2258.1,2258.0,6.25968189]
[1750669831418,1.884,2258.1,2258.0,1.83098393]
[1750669831923,1.884,2258.1,2258.0,4.42869796]
[1750669832125,1.884,2258.1,2257.9,12.21248109]
[1750669832306,1.884,2258.1,2257.9,12.21242399]
[1750669832512,1.884,2258.1,2258.0,4.42869796]
[1750669833121,10.642,2258.3,2258.0,4.47297935]
[1750669833322,9.114,2258.2,2258.0,6.14056888]
[1750669833842,9.114,2258.2,2258.0,6.18484971]
[1750669834340,10.642,2258.3,2258.0,6.18484971]
[1750669834638,9.101,2258.2,2258.0,6.18484874]
[1750669834806,9.101,2258.2,2258.1,4.42850183]
[1750669835130,9.101,2258.2,2258.0,6.18475264]
[1750669835335,9.101,2258.2,2258.0,6.1404718]
[1750669835843,9.101,2258.2,2258.0,6.18475265]
[1750669836528,9.101,2258.2,2258.0,6.1404718]
[1750669837139,9.101,2258.2,2258.0,6.18475266]
[1750669837506,10.642,2258.3,2258.0,6.18475266]
[1750669837705,1.871,2258.6,2258.2,0.8157]
[1750669837937,1.871,2258.7,2258.6,4.42752147]
[1750669838120,1.871,2258.8,2258.7,4.42723123]
[1750669839541,1.871,2258.8,2258.7,6.95765076]
[1750669840045,1.871,2258.8,2258.7,2.48615146]
[1750669840244,1.871,2258.8,2258.4,0.7865]
[1750669840449,1.871,2258.8,2258.4,5.21430967]
[1750669841111,0.6,2258.6,2258.4,5.21430967]
[1750669841413,0.6,2258.6,2258.4,5.21426087]
[1750669841842,0.6,2258.6,2258.5,4.42771751]
[1750669842051,1.871,2258.8,2258.6,4.42744832]
[1750669842406,1.871,2258.8,2258.6,4.47171829]
[1750669843557,1.871,2258.8,2258.6,0.04426997]
[1750669844052,1.871,2258.8,2258.6,4.4717484]
[1750669844743,1.871,2258.8,2258.6,0.04426997]
[1750669844963,1.871,2258.8,2258.6,5.99592514]
[1750669846271,0.832,2259.1,2258.6,8.55829003]
[1750669846599,1.871,2259.0,2258.9,4.42680672]
[1750669846882,1.871,2259.0,2258.9,4.47107099]
[1750669847058,1.871,2259.0,2258.9,4.42680672]
[1750669847258,10.642,2259.3,2258.9,6.08617882]
[1750669847446,1.871,2259.1,2258.9,1.6593721]
[1750669848360,1.871,2259.1,2258.8,0.75]
[1750669848562,1.871,2259.1,2258.6,4.42739488]
[1750669848779,1.871,2259.1,2258.6,4.42737841]
[1750669848983,0.818,2259.0,2258.7,4.42731633]
[1750669849298,0.818,2259.0,2258.7,4.47158287]
[1750669849596,0.818,2259.0,2258.7,1.14560087]
[1750669849877,0.818,2259.0,2258.7,1.10133433]
[1750669850839,0.818,2259.0,2258.7,5.52865337]
[1750669851343,0.818,2259.0,2258.7,1.10133433]
[1750669851577,0.818,2259.0,2258.7,5.528641]
[1750669851875,0.818,2259.0,2258.8,0.04426664]
[1750669853678,0.818,2259.0,2258.7,5.528641]
[1750669854083,0.86221322,2259.0,2258.5,1.330882]
[1750669854277,0.86221322,2259.0,2258.3,4.42801667]
[1750669854481,0.86221322,2259.0,2258.2,5.75931948]
[1750669854682,0.86221322,2259.0,2258.2,1.33113]
[1750669854982,0.86221322,2259.0,2257.7,5.18595569]
[1750669854983,0.833,2258.6,2257.7,5.18595569]
[1750669855288,0.8256,2258.3,2257.5,6.5568071]
[1750669855460,0.8256,2258.1,2257.5,5.2253701]
[1750669855785,9.103,2258.0,2257.6,4.42947261]
[1750669856586,9.103,2258.0,2257.5,5.22535979]
[1750669856889,9.103,2258.0,2257.5,2.46029455]
[1750669857186,9.103,2258.0,2257.6,4.42946341]
[1750669857417,9.103,2258.0,2257.6,4.42945666]
[1750669857604,9.103,2258.0,2257.5,2.46029455]
[1750669857770,9.103,2258.0,2257.5,9.45008842]
[1750669857967,9.103,2258.0,2257.6,0.94500884]
[1750669858363,9.103,2258.0,2257.6,5.41866194]
[1750669858612,9.103,2258.0,2257.6,5.37437332]
[1750669858818,0.8256,2258.1,2257.7,6.98979387]
[1750669859125,1.871,2258.3,2257.9,12.19427503]
[1750669859263,1.871,2258.3,2258.0,6.1352262]
[1750669859791,1.871,2258.3,2258.0,1.66232734]
[1750669859997,1.871,2258.3,2257.6,0.94500884]
[1750669860201,1.871,2258.3,2257.5,0.7675]
[1750669860202,0.85541322,2258.2,2257.5,12.18685773]
[1750669860509,0.85541322,2258.2,2257.6,4.42937368]
[1750669861016,0.8112,2258.2,2257.8,4.42905968]
[1750669861225,0.8112,2258.2,2257.8,4.42897349]
[1750669862207,0.8112,2258.2,2257.9,11.41868317]
[1750669862409,1.871,2258.1,2257.9,8.57458391]
[1750669862804,1.871,2258.1,2257.9,13.0034736]
[1750669863311,1.871,2258.1,2257.9,8.57458391]
[1750669865024,1.871,2258.1,2258.0,1.331384]
[1750669865617,0.8246,2258.9,2258.0,12.74970779]
[1750669865828,2.7036,2258.8,2258.5,4.4275513]
[1750669866159,2.7036,2258.8,2258.6,11.41718683]
[1750669866160,1.879,2258.8,2258.6,11.41718683]
[1750669866413,1.879,2258.8,2258.6,8.32071687]
[1750669866581,1.879,2258.8,2258.6,1.330923]
[1750669866781,1.879,2258.8,2258.6,10.15779942]
[1750669867021,1.879,2258.8,2258.6,14.54096287]
[1750669867224,1.879,2258.8,2258.6,10.11353067]
[1750669867600,1.879,2258.8,2258.7,4.42732545]
[1750669867907,0.45294714,2260.0,2259.0,4.42662203]
[1750669868104,1.878,2259.2,2258.9,6.98979387]
[1750669868515,1.878,2259.2,2258.8,4.42702734]
[1750669868714,1.878,2259.2,2258.9,4.42692106]
[1750669869122,1.878,2259.2,2258.8,4.42703429]
[1750669869289,1.878,2259.2,2258.8,8.85402808]
[1750669869480,1.878,2259.2,2258.8,6.43240597]
[1750669869685,1.878,2259.2,2258.9,4.42691256]
[1750669870088,1.878,2259.2,2258.8,6.4324566]
[1750669870287,0.7826,2259.4,2258.7,11.41703436]
[1750669870509,0.7826,2259.4,2259.0,4.42659707]
[1750669870510,1.878,2259.3,2259.0,4.42659707]
[1750669870719,1.878,2259.3,2259.0,4.47085866]
[1750669871088,1.878,2259.3,2259.0,0.04426159]
[1750669871837,11.878,2259.3,2259.0,0.04426159]
[1750669871990,13.86916,2259.3,2258.6,8.32071687]
[1750669872191,0.04421322,2259.2,2258.6,12.74813675]
[1750669872625,0.8276,2259.1,2258.6,12.74813675]
[1750669873321,0.8276,2259.1,2258.6,8.32071687]
[1750669874302,0.8276,2259.1,2258.6,12.74823411]
[1750669874626,0.8276,2259.1,2258.6,8.32071687]
[1750669874837,0.8276,2259.1,2258.6,12.74823122]
[1750669874990,0.8276,2259.1,2258.6,8.32071687]
[1750669876190,0.8276,2259.1,2258.6,12.74823818]
[1750669876393,0.04421322,2259.0,2258.6,1.330923]
[1750669878523,0.8295,2258.8,2258.6,1.330923]
[1750669878725,1.878,2258.7,2258.6,1.330923]
[1750669879705,1.878,2258.7,2258.6,5.75844447]
[1750669879909,1.878,2258.7,2258.6,7.47605095]
[1750669880322,1.878,2258.9,2258.7,4.42714661]
[1750669880526,1.878,2258.9,2258.8,6.98979387]
[1750669880704,10.7706,2259.3,2258.8,6.98979387]
[1750669880924,9.13,2259.2,2259.0,6.98979387]
[1750669884035,1.878,2259.1,2259.0,6.98979387]
[1750669885022,1.878,2259.1,2259.0,11.41653136]
[1750669885412,1.878,2259.2,2259.1,4.4264136]
[1750669885623,1.878,2259.2,2259.1,11.41620747]
[1750669886018,1.878,2259.2,2259.1,6.98979387]